[Event "December 5 Late 2023"]
[Site "https://www.chess.com"]
[Date "2023.12.05"]
[Round "8"]
[White "Stojanovski, Sandi"]
[Black "Alvarado, Carlos"]
[Result "1-0"]
[Board "77"]
[TimeControl "180+1"]
[WhiteFideId "1403249"]
[BlackFideId "3800555"]
[WhiteElo "2519"]
[BlackElo "2397"]
[WhiteTeam "DEN"]
[BlackTeam "PER"]
[WhiteClock "0:00:05"]
[BlackClock "0:00:00"]

1. d3 {[%clk 0:03:00]}  d5 {[%clk 0:02:58]} 2. Nf3 {[%clk 0:03:01]}  Nf6 {[%clk 0:02:59]} 3. g3 {[%clk 0:03:02]}  c6 {[%clk 0:02:58]} 4. Bg2 {[%clk 0:03:03]}  Bf5 {[%clk 0:02:58]} 5. O-O {[%clk 0:03:03]}  h6 {[%clk 0:02:59]} 6. c4 {[%clk 0:03:04]}  e6 {[%clk 0:02:59]} 7. cxd5 {[%clk 0:03:04]}  exd5 {[%clk 0:02:59]} 8. Nc3 {[%clk 0:03:05]}  Be7 {[%clk 0:03:00]} 9. e4 {[%clk 0:03:05]}  dxe4 {[%clk 0:02:59]} 10. dxe4 {[%clk 0:03:05]}  Qxd1 {[%clk 0:02:59]} 11. Rxd1 {[%clk 0:03:06]}  Nxe4 {[%clk 0:02:59]} 12. Nd4 {[%clk 0:02:53]}  Nxc3 {[%clk 0:02:57]} 13. bxc3 {[%clk 0:02:54]}  Bd7 {[%clk 0:02:44]} 14. Re1 {[%clk 0:02:52]}  Kd8 {[%clk 0:02:33]} 15. Rb1 {[%clk 0:02:50]}  b6 {[%clk 0:02:23]} 16. Bf4 {[%clk 0:02:46]}  Bf6 {[%clk 0:01:46]} 17. Rbd1 {[%clk 0:02:43]}  Kc8 {[%clk 0:01:46]} 18. Nb5 {[%clk 0:02:37]}  cxb5 {[%clk 0:01:41]} 19. Bxa8 {[%clk 0:02:37]}  Bc6 {[%clk 0:01:39]} 20. Bxc6 {[%clk 0:01:39]}  Nxc6 {[%clk 0:01:40]} 21. Rd3 {[%clk 0:01:39]}  Rd8 {[%clk 0:01:35]} 22. Red1 {[%clk 0:01:29]}  Bxc3 {[%clk 0:01:23]} 23. Rxd8+ {[%clk 0:01:21]}  Nxd8 {[%clk 0:01:22]} 24. Rc1 {[%clk 0:01:22]}  b4 {[%clk 0:01:22]} 25. Bd2 {[%clk 0:01:20]}  Ne6 {[%clk 0:01:17]} 26. Bxc3 {[%clk 0:01:21]}  bxc3 {[%clk 0:01:17]} 27. Rxc3+ {[%clk 0:01:21]}  Kd7 {[%clk 0:01:18]} 28. f4 {[%clk 0:01:20]}  g6 {[%clk 0:01:17]} 29. Kf2 {[%clk 0:01:20]}  h5 {[%clk 0:01:17]} 30. Ke3 {[%clk 0:01:20]}  Nc5 {[%clk 0:01:16]} 31. Kd4 {[%clk 0:01:17]}  Kd6 {[%clk 0:01:16]} 32. Kc4 {[%clk 0:01:08]}  a6 {[%clk 0:00:56]} 33. Re3 {[%clk 0:01:06]}  Ne6 {[%clk 0:00:42]} 34. Ra3 {[%clk 0:00:49]}  Nc5 {[%clk 0:00:36]} 35. Re3 {[%clk 0:00:38]}  Ne6 {[%clk 0:00:35]} 36. Re1 {[%clk 0:00:38]}  h4 {[%clk 0:00:30]} 37. f5 {[%clk 0:00:27]}  gxf5 {[%clk 0:00:30]} 38. gxh4 {[%clk 0:00:26]}  Nf4 {[%clk 0:00:20]} 39. Kd4 {[%clk 0:00:17]}  Ng2 {[%clk 0:00:17]} 40. Rb1 {[%clk 0:00:12]}  b5 {[%clk 0:00:16]} 41. h5 {[%clk 0:00:12]}  Ke6 {[%clk 0:00:16]} 42. Kc5 {[%clk 0:00:10]}  f4 {[%clk 0:00:13]} 43. Kb6 {[%clk 0:00:07]}  Kf6 {[%clk 0:00:11]} 44. Kxa6 {[%clk 0:00:07]}  Ne3 {[%clk 0:00:10]} 45. Kxb5 {[%clk 0:00:05]}  f3 {[%clk 0:00:10]} 46. a4 {[%clk 0:00:05]}  Nd5 {[%clk 0:00:07]} 47. Rf1 {[%clk 0:00:03]}  Nc3+ {[%clk 0:00:07]} 48. Kb4 {[%clk 0:00:02]}  Nd5+ {[%clk 0:00:05]} 49. Kc5 {[%clk 0:00:03]}  Nc7 {[%clk 0:00:04]} 50. Rxf3+ {[%clk 0:00:04]}  Kg5 {[%clk 0:00:05]} 51. a5 {[%clk 0:00:04]}  Ne6+ {[%clk 0:00:04]} 52. Kb6 {[%clk 0:00:03]}  Kg4 {[%clk 0:00:03]} 53. Rxf7 {[%clk 0:00:03]}  Ng5 {[%clk 0:00:03]} 54. Rb7 {[%clk 0:00:04]}  Kxh5 {[%clk 0:00:03]} 55. a6 {[%clk 0:00:05]}  Ne6 {[%clk 0:00:03]} 56. a7 {[%clk 0:00:06]}  Nf4 {[%clk 0:00:03]} 57. a8=Q {[%clk 0:00:06]}  Nd5+ {[%clk 0:00:00]} 58. Ka7 {[%clk 0:00:05]} 1-0

[Event "December 5 Late 2023"]
[Site "https://www.chess.com"]
[Date "2023.12.05"]
[Round "8"]
[White "Sarkar, Justin"]
[Black "Leenhouts, Koen"]
[Result "0-1"]
[Board "78"]
[TimeControl "180+1"]
[WhiteFideId "2010011"]
[BlackFideId "1008439"]
[WhiteElo "2311"]
[BlackElo "2514"]
[WhiteTeam "USA"]
[BlackTeam "NED"]
[WhiteClock "0:00:01"]
[BlackClock "0:00:12"]

1. e4 {[%clk 0:02:51]}  e6 {[%clk 0:02:59]} 2. d4 {[%clk 0:02:48]}  d5 {[%clk 0:02:59]} 3. Nc3 {[%clk 0:02:47]}  Bb4 {[%clk 0:02:59]} 4. Qd3 {[%clk 0:02:44]}  dxe4 {[%clk 0:02:53]} 5. Qxe4 {[%clk 0:02:44]}  Nf6 {[%clk 0:02:53]} 6. Qh4 {[%clk 0:02:44]}  b6 {[%clk 0:02:49]} 7. Bb5+ {[%clk 0:02:23]}  Bd7 {[%clk 0:02:44]} 8. Bd3 {[%clk 0:02:22]}  Bc6 {[%clk 0:02:39]} 9. Ne2 {[%clk 0:02:21]}  Be7 {[%clk 0:02:29]} 10. Qg3 {[%clk 0:02:12]}  Nbd7 {[%clk 0:01:59]} 11. Nb5 {[%clk 0:01:47]}  O-O {[%clk 0:01:39]} 12. Nxc7 {[%clk 0:01:05]}  Rc8 {[%clk 0:01:37]} 13. Nb5 {[%clk 0:00:58]}  Bxb5 {[%clk 0:01:34]} 14. Bxb5 {[%clk 0:00:57]}  Rxc2 {[%clk 0:01:35]} 15. O-O {[%clk 0:00:37]}  Qc7 {[%clk 0:01:12]} 16. Bf4 {[%clk 0:00:35]}  Qc8 {[%clk 0:01:05]} 17. Rac1 {[%clk 0:00:30]}  Nh5 {[%clk 0:00:50]} 18. Qb3 {[%clk 0:00:15]}  Rxc1 {[%clk 0:00:44]} 19. Rxc1 {[%clk 0:00:15]}  Qd8 {[%clk 0:00:41]} 20. Bc7 {[%clk 0:00:15]}  Qe8 {[%clk 0:00:32]} 21. Qa4 {[%clk 0:00:14]}  Nhf6 {[%clk 0:00:32]} 22. Be5 {[%clk 0:00:13]}  Qd8 {[%clk 0:00:27]} 23. Qxa7 {[%clk 0:00:07]}  Nxe5 {[%clk 0:00:25]} 24. dxe5 {[%clk 0:00:08]}  Nd5 {[%clk 0:00:17]} 25. Qb7 {[%clk 0:00:04]}  Bc5 {[%clk 0:00:17]} 26. g3 {[%clk 0:00:03]}  Qg5 {[%clk 0:00:16]} 27. Rd1 {[%clk 0:00:02]}  Qxe5 {[%clk 0:00:15]} 28. Kf1 {[%clk 0:00:01]}  Qxb2 {[%clk 0:00:14]} 29. Bc4 {[%clk 0:00:01]}  Qf6 {[%clk 0:00:13]} 30. Bxd5 {[%clk 0:00:01]}  Qxf2# {[%clk 0:00:12]} 0-1

[Event "December 5 Late 2023"]
[Site "https://www.chess.com"]
[Date "2023.12.05"]
[Round "8"]
[White "Chan, Yi Ren Daniel"]
[Black "Wieczorek, Zbigniew"]
[Result "0-1"]
[Board "80"]
[TimeControl "180+1"]
[WhiteFideId "5801583"]
[BlackFideId "1102001"]
[WhiteElo "2792"]
[BlackElo "2231"]
[WhiteTeam "SGP"]
[BlackTeam "POL"]
[WhiteClock "0:00:23"]
[BlackClock "0:00:15"]

1. e4 {[%clk 0:02:21]}  g6 {[%clk 0:02:58]} 2. d4 {[%clk 0:02:21]}  Bg7 {[%clk 0:02:59]} 3. Nc3 {[%clk 0:02:22]}  c6 {[%clk 0:02:59]} 4. f4 {[%clk 0:02:22]}  d5 {[%clk 0:03:00]} 5. e5 {[%clk 0:02:23]}  Nh6 {[%clk 0:03:00]} 6. Bd3 {[%clk 0:02:20]}  f6 {[%clk 0:03:00]} 7. Nf3 {[%clk 0:02:19]}  Bg4 {[%clk 0:03:01]} 8. h3 {[%clk 0:02:18]}  Bxf3 {[%clk 0:03:00]} 9. Qxf3 {[%clk 0:02:19]}  O-O {[%clk 0:03:01]} 10. Qe2 {[%clk 0:02:17]}  fxe5 {[%clk 0:03:01]} 11. dxe5 {[%clk 0:02:12]}  e6 {[%clk 0:03:02]} 12. Bd2 {[%clk 0:02:08]}  Qh4+ {[%clk 0:02:55]} 13. Kd1 {[%clk 0:02:08]}  Nd7 {[%clk 0:02:50]} 14. Be3 {[%clk 0:01:57]}  c5 {[%clk 0:02:43]} 15. Bb5 {[%clk 0:01:55]}  Rad8 {[%clk 0:02:22]} 16. Bd2 {[%clk 0:01:30]}  Nf5 {[%clk 0:02:02]} 17. Qg4 {[%clk 0:01:31]}  Qe7 {[%clk 0:01:58]} 18. Re1 {[%clk 0:01:25]}  c4 {[%clk 0:01:49]} 19. Bxd7 {[%clk 0:01:23]}  Qxd7 {[%clk 0:01:37]} 20. Kc1 {[%clk 0:01:22]}  b5 {[%clk 0:01:35]} 21. a3 {[%clk 0:01:22]}  a5 {[%clk 0:01:34]} 22. Na2 {[%clk 0:01:22]}  Ra8 {[%clk 0:01:32]} 23. Qd1 {[%clk 0:01:17]}  Rfb8 {[%clk 0:01:22]} 24. g4 {[%clk 0:01:17]}  Ne7 {[%clk 0:01:15]} 25. c3 {[%clk 0:01:15]}  Nc6 {[%clk 0:01:08]} 26. Qf3 {[%clk 0:01:12]}  b4 {[%clk 0:00:59]} 27. Kd1 {[%clk 0:01:07]}  bxa3 {[%clk 0:00:58]} 28. bxa3 {[%clk 0:01:07]}  Rb2 {[%clk 0:00:58]} 29. Nc1 {[%clk 0:00:49]}  Rab8 {[%clk 0:00:58]} 30. Re2 {[%clk 0:00:48]}  d4 {[%clk 0:00:57]} 31. Ke1 {[%clk 0:00:47]}  d3 {[%clk 0:00:53]} 32. Rf2 {[%clk 0:00:44]}  Qd5 {[%clk 0:00:41]} 33. Qxd5 {[%clk 0:00:24]}  exd5 {[%clk 0:00:40]} 34. Be3 {[%clk 0:00:23]}  g5 {[%clk 0:00:38]} 35. Rxb2 {[%clk 0:00:19]}  Rxb2 {[%clk 0:00:39]} 36. Ra2 {[%clk 0:00:19]}  Rxa2 {[%clk 0:00:35]} 37. Nxa2 {[%clk 0:00:20]}  gxf4 {[%clk 0:00:35]} 38. Bxf4 {[%clk 0:00:21]}  Bxe5 {[%clk 0:00:35]} 39. Be3 {[%clk 0:00:21]}  Kf7 {[%clk 0:00:32]} 40. Kd2 {[%clk 0:00:21]}  Ke6 {[%clk 0:00:31]} 41. Bb6 {[%clk 0:00:21]}  Bf4+ {[%clk 0:00:29]} 42. Kd1 {[%clk 0:00:21]}  Ke5 {[%clk 0:00:28]} 43. h4 {[%clk 0:00:19]}  Bg3 {[%clk 0:00:27]} 44. h5 {[%clk 0:00:20]}  Bf4 {[%clk 0:00:28]} 45. Nc1 {[%clk 0:00:19]}  Ke4 {[%clk 0:00:27]} 46. Bc5 {[%clk 0:00:18]}  Ne5 {[%clk 0:00:24]} 47. Bb6 {[%clk 0:00:17]}  a4 {[%clk 0:00:23]} 48. Na2 {[%clk 0:00:16]}  Nxg4 {[%clk 0:00:23]} 49. Nb4 {[%clk 0:00:17]}  Ne3+ {[%clk 0:00:22]} 50. Ke1 {[%clk 0:00:17]}  Nc2+ {[%clk 0:00:22]} 51. Kd1 {[%clk 0:00:18]}  Nxa3 {[%clk 0:00:22]} 52. Na6 {[%clk 0:00:16]}  Nb5 {[%clk 0:00:21]} 53. Nc5+ {[%clk 0:00:17]}  Kf3 {[%clk 0:00:21]} 54. Nxa4 {[%clk 0:00:18]}  Be5 {[%clk 0:00:20]} 55. Ba5 {[%clk 0:00:18]}  d4 {[%clk 0:00:19]} 56. cxd4 {[%clk 0:00:16]}  Bxd4 {[%clk 0:00:19]} 57. Nb6 {[%clk 0:00:17]}  c3 {[%clk 0:00:19]} 58. Nc4 {[%clk 0:00:15]}  c2+ {[%clk 0:00:18]} 59. Kd2 {[%clk 0:00:16]}  Bc3+ {[%clk 0:00:17]} 60. Bxc3 {[%clk 0:00:16]}  Nxc3 {[%clk 0:00:18]} 61. Nb2 {[%clk 0:00:16]}  Ne4+ {[%clk 0:00:17]} 62. Kc1 {[%clk 0:00:16]}  Ke2 {[%clk 0:00:17]} 63. h6 {[%clk 0:00:14]}  Ng3 {[%clk 0:00:16]} 64. Nc4 {[%clk 0:00:14]}  Nf5 {[%clk 0:00:16]} 65. Kb2 {[%clk 0:00:14]}  d2 {[%clk 0:00:13]} 66. Kxc2 {[%clk 0:00:12]}  d1=Q+ {[%clk 0:00:13]} 67. Kc3 {[%clk 0:00:13]}  Qd3+ {[%clk 0:00:14]} 68. Kb4 {[%clk 0:00:13]}  Nd4 {[%clk 0:00:13]} 69. Kc5 {[%clk 0:00:14]}  Qc3 {[%clk 0:00:12]} 70. Kd5 {[%clk 0:00:14]}  Nf3 {[%clk 0:00:12]} 71. Nd6 {[%clk 0:00:14]}  Qd3+ {[%clk 0:00:12]} 72. Ke6 {[%clk 0:00:15]}  Qg6+ {[%clk 0:00:12]} 73. Kd5 {[%clk 0:00:15]}  Qxh6 {[%clk 0:00:12]} 74. Nf5 {[%clk 0:00:15]}  Qg5 {[%clk 0:00:13]} 75. Ke4 {[%clk 0:00:16]}  Nd2+ {[%clk 0:00:12]} 76. Ke5 {[%clk 0:00:16]}  Kf3 {[%clk 0:00:11]} 77. Ke6 {[%clk 0:00:16]}  Qg6+ {[%clk 0:00:11]} 78. Ke5 {[%clk 0:00:16]}  Nc4+ {[%clk 0:00:12]} 79. Kd4 {[%clk 0:00:16]}  Qxf5 {[%clk 0:00:12]} 80. Kc3 {[%clk 0:00:16]}  h5 {[%clk 0:00:13]} 81. Kd4 {[%clk 0:00:16]}  h4 {[%clk 0:00:14]} 82. Kc3 {[%clk 0:00:17]}  h3 {[%clk 0:00:14]} 83. Kd4 {[%clk 0:00:18]}  Qe4+ {[%clk 0:00:15]} 84. Kc3 {[%clk 0:00:19]}  Nd6 {[%clk 0:00:15]} 85. Kd2 {[%clk 0:00:19]}  Qe3+ {[%clk 0:00:15]} 86. Kd1 {[%clk 0:00:20]}  Kf2 {[%clk 0:00:14]} 87. Kc2 {[%clk 0:00:20]}  Qe2+ {[%clk 0:00:14]} 88. Kc3 {[%clk 0:00:20]}  Qe3+ {[%clk 0:00:14]} 89. Kc2 {[%clk 0:00:21]}  Nf5 {[%clk 0:00:14]} 90. Kb2 {[%clk 0:00:21]}  Qd3 {[%clk 0:00:14]} 91. Kc1 {[%clk 0:00:21]}  Qe2 {[%clk 0:00:14]} 92. Kb1 {[%clk 0:00:21]}  Ke3 {[%clk 0:00:15]} 93. Ka1 {[%clk 0:00:22]}  h2 {[%clk 0:00:15]} 94. Kb1 {[%clk 0:00:23]}  h1=R# {[%clk 0:00:15]} 0-1

[Event "December 5 Late 2023"]
[Site "https://www.chess.com"]
[Date "2023.12.05"]
[Round "8"]
[White "Korchynskyi, Mykola"]
[Black "Marcziter, Dmitrii"]
[Result "1-0"]
[Board "85"]
[TimeControl "180+1"]
[WhiteFideId "34138005"]
[BlackFideId "13900765"]
[WhiteElo "2524"]
[BlackElo "2388"]
[WhiteTeam "UKR"]
[BlackTeam "GER"]
[WhiteClock "0:00:13"]
[BlackClock "0:00:06"]

1. d4 {[%clk 0:02:54]}  Nf6 {[%clk 0:02:58]} 2. c4 {[%clk 0:02:55]}  g6 {[%clk 0:02:58]} 3. Nc3 {[%clk 0:02:55]}  Bg7 {[%clk 0:02:58]} 4. Bf4 {[%clk 0:02:53]}  d6 {[%clk 0:02:59]} 5. e3 {[%clk 0:02:53]}  O-O {[%clk 0:02:58]} 6. Nf3 {[%clk 0:02:53]}  Nbd7 {[%clk 0:02:57]} 7. Be2 {[%clk 0:02:54]}  c5 {[%clk 0:02:54]} 8. O-O {[%clk 0:02:54]}  a6 {[%clk 0:02:53]} 9. Qc2 {[%clk 0:02:53]}  Rb8 {[%clk 0:02:52]} 10. Rad1 {[%clk 0:02:52]}  Nh5 {[%clk 0:02:48]} 11. Bg3 {[%clk 0:02:51]}  Nxg3 {[%clk 0:02:47]} 12. hxg3 {[%clk 0:02:52]}  b6 {[%clk 0:02:44]} 13. b3 {[%clk 0:02:51]}  Nf6 {[%clk 0:02:41]} 14. dxc5 {[%clk 0:02:50]}  bxc5 {[%clk 0:02:39]} 15. Nd5 {[%clk 0:02:50]}  Nxd5 {[%clk 0:02:37]} 16. Rxd5 {[%clk 0:02:51]}  Bb7 {[%clk 0:02:35]} 17. Rd2 {[%clk 0:02:50]}  Qc7 {[%clk 0:02:30]} 18. Rfd1 {[%clk 0:02:49]}  a5 {[%clk 0:02:29]} 19. Ne1 {[%clk 0:02:48]}  a4 {[%clk 0:02:29]} 20. Bf3 {[%clk 0:02:46]}  axb3 {[%clk 0:02:29]} 21. axb3 {[%clk 0:02:46]}  Qb6 {[%clk 0:02:21]} 22. Rd3 {[%clk 0:02:41]}  Bc8 {[%clk 0:02:17]} 23. Qe2 {[%clk 0:02:34]}  Bf5 {[%clk 0:02:15]} 24. e4 {[%clk 0:02:33]}  Be6 {[%clk 0:02:14]} 25. Nc2 {[%clk 0:02:34]}  Qc7 {[%clk 0:02:06]} 26. Ne3 {[%clk 0:02:32]}  Rb6 {[%clk 0:02:03]} 27. Nd5 {[%clk 0:02:26]}  Bxd5 {[%clk 0:02:03]} 28. exd5 {[%clk 0:02:27]}  Rfb8 {[%clk 0:02:02]} 29. Qc2 {[%clk 0:02:24]}  Qb7 {[%clk 0:02:01]} 30. Rb1 {[%clk 0:02:24]}  Ra8 {[%clk 0:01:56]} 31. Bd1 {[%clk 0:02:22]}  Rba6 {[%clk 0:01:55]} 32. Qe2 {[%clk 0:02:21]}  Ra2 {[%clk 0:01:54]} 33. Qe4 {[%clk 0:02:20]}  Bf6 {[%clk 0:01:47]} 34. Rf3 {[%clk 0:01:55]}  Rd2 {[%clk 0:01:42]} 35. g4 {[%clk 0:01:43]}  Raa2 {[%clk 0:01:40]} 36. Qf4 {[%clk 0:01:41]}  g5 {[%clk 0:01:33]} 37. Qf5 {[%clk 0:01:37]}  Qb8 {[%clk 0:01:21]} 38. Rh3 {[%clk 0:01:17]}  Rxf2 {[%clk 0:01:10]} 39. Qxh7+ {[%clk 0:01:15]}  Kf8 {[%clk 0:01:09]} 40. Bf3 {[%clk 0:01:15]}  Qb4 {[%clk 0:00:47]} 41. Qf5 {[%clk 0:01:01]}  Qb7 {[%clk 0:00:38]} 42. Kh1 {[%clk 0:00:35]}  Qa8 {[%clk 0:00:33]} 43. Rg1 {[%clk 0:00:21]}  Ra1 {[%clk 0:00:29]} 44. Qh7 {[%clk 0:00:15]}  Rxg1+ {[%clk 0:00:23]} 45. Kxg1 {[%clk 0:00:16]}  Bd4 {[%clk 0:00:23]} 46. Qh8+ {[%clk 0:00:16]}  Bxh8 {[%clk 0:00:20]} 47. Rxh8+ {[%clk 0:00:17]}  Kg7 {[%clk 0:00:21]} 48. Rxa8 {[%clk 0:00:18]}  Rb2 {[%clk 0:00:20]} 49. Rb8 {[%clk 0:00:17]}  Kf6 {[%clk 0:00:21]} 50. Rb7 {[%clk 0:00:17]}  e6 {[%clk 0:00:20]} 51. dxe6 {[%clk 0:00:17]}  fxe6 {[%clk 0:00:20]} 52. Kh2 {[%clk 0:00:17]}  Ke5 {[%clk 0:00:20]} 53. Kg3 {[%clk 0:00:17]}  d5 {[%clk 0:00:20]} 54. cxd5 {[%clk 0:00:17]}  exd5 {[%clk 0:00:20]} 55. Rd7 {[%clk 0:00:16]}  d4 {[%clk 0:00:20]} 56. Rd5+ {[%clk 0:00:16]}  Ke6 {[%clk 0:00:19]} 57. Rxc5 {[%clk 0:00:16]}  Rxb3 {[%clk 0:00:15]} 58. Rxg5 {[%clk 0:00:13]}  Kf6 {[%clk 0:00:12]} 59. Rd5 {[%clk 0:00:13]}  d3 {[%clk 0:00:11]} 60. Kf4 {[%clk 0:00:11]}  Ke6 {[%clk 0:00:11]} 61. Be4 {[%clk 0:00:09]}  d2 {[%clk 0:00:03]} 62. Rxd2 {[%clk 0:00:09]}  Rb4 {[%clk 0:00:04]} 63. g5 {[%clk 0:00:08]}  Ra4 {[%clk 0:00:03]} 64. g6 {[%clk 0:00:08]}  Kf6 {[%clk 0:00:04]} 65. Rd6+ {[%clk 0:00:08]}  Kg7 {[%clk 0:00:04]} 66. Rb6 {[%clk 0:00:09]}  Ra7 {[%clk 0:00:03]} 67. Rb7+ {[%clk 0:00:08]}  Rxb7 {[%clk 0:00:04]} 68. Bxb7 {[%clk 0:00:09]}  Kxg6 {[%clk 0:00:04]} 69. Be4+ {[%clk 0:00:10]}  Kf6 {[%clk 0:00:05]} 70. g4 {[%clk 0:00:11]}  Kg7 {[%clk 0:00:05]} 71. g5 {[%clk 0:00:11]}  Kf7 {[%clk 0:00:06]} 72. Kf5 {[%clk 0:00:12]}  Kg7 {[%clk 0:00:07]} 73. g6 {[%clk 0:00:12]}  Kg8 {[%clk 0:00:08]} 74. Kf6 {[%clk 0:00:12]}  Kf8 {[%clk 0:00:09]} 75. g7+ {[%clk 0:00:13]}  Kg8 {[%clk 0:00:06]} 76. Bd5+ {[%clk 0:00:13]} 1-0

[Event "December 5 Late 2023"]
[Site "https://www.chess.com"]
[Date "2023.12.05"]
[Round "8"]
[White "Mazurkiewicz, Michal"]
[Black "Akhayan, Ruben"]
[Result "1-0"]
[Board "88"]
[TimeControl "180+1"]
[WhiteFideId "1124943"]
[BlackFideId "204439"]
[WhiteElo "2496"]
[BlackElo "2378"]
[WhiteTeam "POL"]
[BlackTeam "BEL"]
[WhiteClock "0:00:51"]
[BlackClock "0:00:14"]

1. e4 {[%clk 0:03:00]}  e5 {[%clk 0:02:58]} 2. Nf3 {[%clk 0:03:00]}  Nc6 {[%clk 0:02:59]} 3. Bb5 {[%clk 0:03:00]}  a6 {[%clk 0:02:59]} 4. Bxc6 {[%clk 0:03:00]}  dxc6 {[%clk 0:02:58]} 5. O-O {[%clk 0:03:01]}  f6 {[%clk 0:02:58]} 6. d4 {[%clk 0:03:01]}  exd4 {[%clk 0:02:57]} 7. Nxd4 {[%clk 0:03:02]}  c5 {[%clk 0:02:57]} 8. Nb3 {[%clk 0:03:02]}  Qxd1 {[%clk 0:02:57]} 9. Rxd1 {[%clk 0:03:03]}  Bg4 {[%clk 0:02:58]} 10. f3 {[%clk 0:03:03]}  Bd7 {[%clk 0:02:58]} 11. Nc3 {[%clk 0:02:42]}  O-O-O {[%clk 0:02:55]} 12. Bf4 {[%clk 0:02:33]}  c4 {[%clk 0:02:34]} 13. Na5 {[%clk 0:02:28]}  b5 {[%clk 0:02:34]} 14. Nd5 {[%clk 0:02:23]}  Bc5+ {[%clk 0:02:33]} 15. Kf1 {[%clk 0:02:22]}  c6 {[%clk 0:02:15]} 16. b4 {[%clk 0:02:04]}  cxb3 {[%clk 0:01:46]} 17. cxb3 {[%clk 0:02:04]}  g5 {[%clk 0:01:27]} 18. Bg3 {[%clk 0:01:59]}  cxd5 {[%clk 0:01:20]} 19. Rac1 {[%clk 0:01:58]}  Be6 {[%clk 0:00:34]} 20. Rxc5+ {[%clk 0:01:53]}  Kd7 {[%clk 0:00:34]} 21. exd5 {[%clk 0:01:20]}  Bf5 {[%clk 0:00:34]} 22. Rc7+ {[%clk 0:01:20]}  Ke8 {[%clk 0:00:14]} 23. Nb7 {[%clk 0:00:51]} 1-0

[Event "December 5 Late 2023"]
[Site "https://www.chess.com"]
[Date "2023.12.05"]
[Round "8"]
[White "Baches Garcia, Guillermo"]
[Black "Buenafe Moya, Javier"]
[Result "1-0"]
[Board "89"]
[TimeControl "180+1"]
[WhiteFideId "2209764"]
[BlackFideId "2206412"]
[WhiteElo "2494"]
[BlackElo "2369"]
[WhiteTeam "ESP"]
[BlackTeam "ESP"]
[WhiteClock "0:00:27"]
[BlackClock "0:00:28"]

1. d4 {[%clk 0:03:00]}  Nf6 {[%clk 0:02:58]} 2. Nf3 {[%clk 0:03:01]}  e6 {[%clk 0:02:57]} 3. Bg5 {[%clk 0:03:02]}  h6 {[%clk 0:02:56]} 4. Bh4 {[%clk 0:03:01]}  g5 {[%clk 0:02:55]} 5. Bg3 {[%clk 0:03:00]}  c5 {[%clk 0:02:54]} 6. e3 {[%clk 0:02:59]}  Nc6 {[%clk 0:02:53]} 7. c3 {[%clk 0:02:59]}  cxd4 {[%clk 0:02:49]} 8. exd4 {[%clk 0:02:59]}  d5 {[%clk 0:02:48]} 9. Nbd2 {[%clk 0:02:57]}  Bd6 {[%clk 0:02:46]} 10. Bd3 {[%clk 0:02:55]}  Nh5 {[%clk 0:02:29]} 11. Qe2 {[%clk 0:02:38]}  Nf4 {[%clk 0:02:26]} 12. Bxf4 {[%clk 0:02:37]}  Bxf4 {[%clk 0:02:25]} 13. g3 {[%clk 0:02:31]}  Bd6 {[%clk 0:02:21]} 14. h4 {[%clk 0:02:29]}  g4 {[%clk 0:02:17]} 15. Ne5 {[%clk 0:02:16]}  Bxe5 {[%clk 0:02:14]} 16. dxe5 {[%clk 0:02:16]}  h5 {[%clk 0:02:13]} 17. O-O {[%clk 0:02:05]}  d4 {[%clk 0:01:58]} 18. c4 {[%clk 0:01:58]}  Qa5 {[%clk 0:01:56]} 19. Rfe1 {[%clk 0:01:54]}  Bd7 {[%clk 0:01:55]} 20. a3 {[%clk 0:01:45]}  O-O-O {[%clk 0:01:49]} 21. b4 {[%clk 0:01:44]}  Qc7 {[%clk 0:01:46]} 22. b5 {[%clk 0:01:34]}  Na5 {[%clk 0:01:45]} 23. Qe4 {[%clk 0:01:21]}  Kb8 {[%clk 0:01:41]} 24. Qf4 {[%clk 0:01:10]}  Bc8 {[%clk 0:01:38]} 25. Rac1 {[%clk 0:01:04]}  Rdf8 {[%clk 0:01:29]} 26. c5 {[%clk 0:00:57]}  f6 {[%clk 0:01:26]} 27. c6 {[%clk 0:00:51]}  fxe5 {[%clk 0:01:24]} 28. Qxe5 {[%clk 0:00:52]}  Qxe5 {[%clk 0:01:20]} 29. Rxe5 {[%clk 0:00:52]}  Rf7 {[%clk 0:01:04]} 30. Be4 {[%clk 0:00:49]}  Rhf8 {[%clk 0:00:55]} 31. Rf1 {[%clk 0:00:38]}  Kc7 {[%clk 0:00:53]} 32. Rxh5 {[%clk 0:00:38]}  bxc6 {[%clk 0:00:51]} 33. bxc6 {[%clk 0:00:37]}  Nxc6 {[%clk 0:00:51]} 34. Rc5 {[%clk 0:00:36]}  Bb7 {[%clk 0:00:50]} 35. Bxc6 {[%clk 0:00:35]}  Bxc6 {[%clk 0:00:48]} 36. Rfc1 {[%clk 0:00:35]}  Rxf2 {[%clk 0:00:47]} 37. Rxc6+ {[%clk 0:00:35]}  Kd7 {[%clk 0:00:46]} 38. Ne4 {[%clk 0:00:33]}  Ra2 {[%clk 0:00:32]} 39. Rc7+ {[%clk 0:00:32]}  Ke8 {[%clk 0:00:32]} 40. Rc8+ {[%clk 0:00:29]}  Kf7 {[%clk 0:00:32]} 41. Rf1+ {[%clk 0:00:29]}  Ke7 {[%clk 0:00:28]} 42. Rcxf8 {[%clk 0:00:27]} 1-0

[Event "December 5 Late 2023"]
[Site "https://www.chess.com"]
[Date "2023.12.05"]
[Round "8"]
[White "youngdinousaur"]
[Black "NovakRatko"]
[Result "0-1"]
[Board "92"]
[TimeControl "180+1"]
[WhiteElo "2332"]
[BlackElo "2466"]
[WhiteClock "0:01:25"]
[BlackClock "0:02:28"]

1. d4 {[%clk 0:03:00]}  d5 {[%clk 0:02:48]} 2. Nf3 {[%clk 0:03:01]}  c5 {[%clk 0:02:43]} 3. c3 {[%clk 0:03:01]}  cxd4 {[%clk 0:02:42]} 4. cxd4 {[%clk 0:03:02]}  Nc6 {[%clk 0:02:43]} 5. Bf4 {[%clk 0:03:02]}  f6 {[%clk 0:02:43]} 6. e3 {[%clk 0:03:01]}  Bg4 {[%clk 0:02:43]} 7. Nc3 {[%clk 0:03:00]}  e5 {[%clk 0:02:42]} 8. dxe5 {[%clk 0:02:59]}  fxe5 {[%clk 0:02:42]} 9. Bg3 {[%clk 0:02:13]}  e4 {[%clk 0:02:41]} 10. Nxd5 {[%clk 0:02:03]}  exf3 {[%clk 0:02:36]} 11. Nc7+ {[%clk 0:01:40]}  Qxc7 {[%clk 0:02:36]} 12. gxf3 {[%clk 0:01:30]}  Qa5+ {[%clk 0:02:28]} 13. Qd2 {[%clk 0:01:25]}  Bb4 {[%clk 0:02:28]} 0-1